{"text_format":"1","workbook":"xlsx","n_sheets":2,"sheets":["CERTIFICACIÓN","Hoja7"],"not_rendered":{"charts":0,"images":4,"macros":1,"external_links":0,"defined_names":2,"comments":0,"pivot_tables":0},"unopened":[],"bounds":{"document_bytes":16777216,"sheet_cells":100000,"rows_first":2000,"rows_last":500,"rows_between":2000,"halvings":0,"cell_chars":16384,"cell_head_chars":4096},"cells_cut":0,"cells_raw":0,"read":"whole","date_system":"1900"}

{"sheet":"CERTIFICACIÓN","index":0,"n_rows":187,"n_cols":31,"rows_kept":187,"cut":false,"hidden":false,"merged":[[59,0,59,24],[0,10,0,23],[1,10,1,23],[2,10,2,23],[3,10,3,23],[4,10,4,23],[5,10,5,23],[28,3,28,6],[31,8,31,23],[41,21,41,22],[41,5,41,20],[43,15,43,21],[46,1,46,24],[32,1,32,3],[34,2,34,4],[42,2,42,6],[37,5,37,8],[38,12,38,19],[28,8,28,12],[29,1,29,8],[32,5,32,9],[32,20,32,24],[33,13,33,24],[34,6,34,10],[30,2,30,6],[30,18,30,24],[17,5,17,15],[21,4,21,11],[0,1,0,5]]}
[null,"Banco Destino:"]
[null,"Fondo de Inversión Colectiva:"]
[null,"Nombre del Titular:"]
[null,"Tipo de Identificación:"]
[null,"Número de Identificación:"]
[null,"Número de la Inversión:"]
[]
[]
[]
[]
[]
[]
[]
[]
[]
[]
[]
[null,"Bogotá D.C., ",null,null,null,{"$f":"TODAY()","v":"2023-06-24"}]
[]
[]
[null,"Señores"]
[null,"BANCO",null,null,{"$f":"IF(K1=\"\",\"\",VLOOKUP(K1,CERTIFICACIÓN!$Z$107:$AA$119,2,0))","v":""}]
[null,"Ciudad"]
[]
[]
[null,"Apreciados Señores:"]
[]
[null,"Por medio de la presente  CERTIFICAMOS  que la suma de dinero que se acreditará en la"]
[null,"cuenta",null,{"$f":"IFERROR(IF(K1=\"\",\"\",VLOOKUP(CONCATENATE(VLOOKUP(K2,CERTIFICACIÓN!$Z$124:$AA$137,2,0),CERTIFICACIÓN!K1),CERTIFICACIÓN!$Z$142:$AD$187,5,0)),\"\")","v":""},null,null,null,"No.",{"$f":"IFERROR(IF(K1=\"\",\"\",VLOOKUP(CONCATENATE(VLOOKUP(K2,CERTIFICACIÓN!$Z$124:$AA$137,2,0),CERTIFICACIÓN!K1),CERTIFICACIÓN!$Z$142:$AD$187,4,0)),\"No Disponible\")","v":""},null,null,null,null,", cuyo titular es el Fondo de Inversión Colectiva"]
[null,{"$f":"+IF(K2=\"\",\"\",K2)","v":""},null,null,null,null,null,null,null,"administrado por Fiduciaria de Occidente S.A., identificado con "]
[null,"NIT",{"$f":"IF(K2=\"\",\"\",VLOOKUP(K2,CERTIFICACIÓN!$Z$124:$AC$137,4,0))","v":""},null,null,null,null,", será debitada de la cuenta en el BANCO",null,null,null,null,null,null,null,null,null,null,{"$f":"+E22","v":""}]
[null,"constituida a nombre de",null,null,null,null,null,null,{"$f":"+IF(K3=\"\",\"\",K3)","v":""},null,null,null,null,null,null,null,null,null,null,null,null,null,null,null,"con"]
[null,{"$f":"+IF(K4=\"\",\"\",K4)","v":""},null,null,"No.",{"$f":"+IF(K5=\"\",\"\",K5)","v":""},null,null,null,null,"para ser abonada en la inversión  No.",null,null,null,null,null,null,null,null,null,{"$f":"+IF(K6=\"\",\"\",K6)","v":""}]
[null,"cuyo constituyente y aportante es también",null,null,null,null,null,null,null,null,null,null,null,{"$f":"+I32","v":""}]
[null,"con",{"$f":"+B33","v":""},null,null,"No.",{"$f":"+F33","v":""},null,null,null,null,"."]
[]
[null,"De acuerdo con lo anterior, tenemos que",null,null,null,null,null,null,null,null,null,null,{"$f":"+I32","v":""},null,null,null,null,null,null,null,null,null,null,null,"con"]
[null,{"$f":"+C35","v":""},null,null,"No.",{"$f":"+F33","v":""},null,null,null,"es a la vez titular de la cuenta bancaria individual y aportante "]
[null,"del Fondo de Inversión Colectiva Abierta",null,null,null,null,null,null,null,null,null,null,{"$f":"+B30","v":""},null,null,null,null,null,null,null,"."]
[]
[null,"Por  lo  anterior, el traslado de recursos realizado entre la cuenta bancaria  individual  de "]
[null,"propiedad de ",null,null,null,{"$f":"+I32","v":""},null,null,null,null,null,null,null,null,null,null,null,null,null,null,null,"con",null,{"$f":"+B33","v":""}]
[null,"No.",{"$f":"+F38","v":""},null,null,null,null,"y la cuenta bancaria colectiva abierta a nombre del mencionado Fondo"]
[null,"de  Inversión Colectiva,  abiertas ambas en BANCO ",null,null,null,null,null,null,null,null,null,null,null,null,null,{"$f":"+S31","v":""},null,null,null,null,null,null,"  está "]
[null,"exento delGMF."]
[]
[null,"Esta operación es exenta del Gravamen a los Movimientos Financieros (4X1000), de acuerdo a lo establecido en el numeral 14 del artículo 879 del Estatuto Tributario, reglamentado por el numeral 2 del Art 8 del Decreto 660 de 2011."]
[]
[]
[null,"Cordialmente,"]
[]
[]
[]
[null,"NOHORA GONZALEZ AMIN"]
[null,"Directora de Fondos de Inversión Colectiva"]
[null,"Fiduciaria de Occidente"]
[]
[]
[]
["Dirección General Bogotá, Carrera 13 No. 26A-47 Piso 9-10. PBX 2973030 www.fiduoccidente.com.co"]
[]
[]
[]
[]
[]
[]
[]
[]
[]
[]
[]
[]
[]
[]
[]
[]
[]
[]
[]
[]
[]
[]
[]
[]
[]
[]
[]
[]
[]
[]
[]
[]
[]
[]
[]
[]
[]
[]
[]
[]
[]
[]
[]
[]
[]
[null,null,null,null,null,null,null,null,null,null,null,null,null,null,null,null,null,null,null,null,null,null,null,null,null,null,"Bancos","Cuenta"]
[null,null,null,null,null,null,null,null,null,null,null,null,null,null,null,null,null,null,null,null,null,null,null,null,null,"BANCO DE OCCIDENTE","DE OCCIDENTE","corriente","Cédula"]
[null,null,null,null,null,null,null,null,null,null,null,null,null,null,null,null,null,null,null,null,null,null,null,null,null,"BANCOLOMBIA","BANCOLOMBIA","de Ahorros","NIT"]
[null,null,null,null,null,null,null,null,null,null,null,null,null,null,null,null,null,null,null,null,null,null,null,null,null,"BANCO AGRARIO DE COLOMBIA","AGRARIO DE COLOMBIA"]
[null,null,null,null,null,null,null,null,null,null,null,null,null,null,null,null,null,null,null,null,null,null,null,null,null,"BANCO DE BOGOTA","DE BOGOTA"]
[null,null,null,null,null,null,null,null,null,null,null,null,null,null,null,null,null,null,null,null,null,null,null,null,null,"BANCO DAVIVIENDA","DAVIVIENDA"]
[null,null,null,null,null,null,null,null,null,null,null,null,null,null,null,null,null,null,null,null,null,null,null,null,null,"BBVA COLOMBIA                                                               ","BBVA COLOMBIA"]
[null,null,null,null,null,null,null,null,null,null,null,null,null,null,null,null,null,null,null,null,null,null,null,null,null,"SCOTIABANK COLPATRIA","SCOTIABANK COLPATRIA"]
[null,null,null,null,null,null,null,null,null,null,null,null,null,null,null,null,null,null,null,null,null,null,null,null,null,"BANCO AV VILLAS","AV VILLAS"]
[null,null,null,null,null,null,null,null,null,null,null,null,null,null,null,null,null,null,null,null,null,null,null,null,null,"BANCO CAJA SOCIAL","BCSC CAJA SOCIAL"]
[null,null,null,null,null,null,null,null,null,null,null,null,null,null,null,null,null,null,null,null,null,null,null,null,null,"BANCO POPULAR","POPULAR"]
[null,null,null,null,null,null,null,null,null,null,null,null,null,null,null,null,null,null,null,null,null,null,null,null,null,"ITAÚ CORPBANCA COLOMBIA","ITAÚ CORPBANCA COLOMBIA"]
[null,null,null,null,null,null,null,null,null,null,null,null,null,null,null,null,null,null,null,null,null,null,null,null,null,"BANCO GNB SUDAMERIS","GNB SUDAMERIS"]
[null,null,null,null,null,null,null,null,null,null,null,null,null,null,null,null,null,null,null,null,null,null,null,null,null,"CITIBANK COLOMBIA","CITIBANK COLOMBIA"]
[]
[]
[]
[null,null,null,null,null,null,null,null,null,null,null,null,null,null,null,null,null,null,null,null,null,null,null,null,null,"Fondo","Cod.","Fondo","NIT"]
[null,null,null,null,null,null,null,null,null,null,null,null,null,null,null,null,null,null,null,null,null,null,null,null,null,"OCCIRENTA",100,"FONDO DE INVERSION COLECTIVA ABIERTA OCCIRENTA","800.147.640-8"]
[null,null,null,null,null,null,null,null,null,null,null,null,null,null,null,null,null,null,null,null,null,null,null,null,null,"OCCITESOROS",110,"FONDO DE INVERSION COLECTIVA ABIERTA OCCITESOROS","900.072.952-1"]
[null,null,null,null,null,null,null,null,null,null,null,null,null,null,null,null,null,null,null,null,null,null,null,null,null,"AVANZA",107,"FONDO DE INVERSION COLECTIVA ABIERTA AVANZA","900.072.951-2"]
[null,null,null,null,null,null,null,null,null,null,null,null,null,null,null,null,null,null,null,null,null,null,null,null,null,"RENTA FIJA RECURRENTE",112,"FIC ABIERTO RENTA FIJA RECURRENTE","901.398.825-6"]
[null,null,null,null,null,null,null,null,null,null,null,null,null,null,null,null,null,null,null,null,null,null,null,null,null,"META PLANEADA",105,"FONDO DE INVERSIÓN COLECTIVA ABIERTO CON PACTO DE PERMANENCIA META PLANEADA","901.301.009-6"]
[null,null,null,null,null,null,null,null,null,null,null,null,null,null,null,null,null,null,null,null,null,null,null,null,null,"RENTA FIJA DINAMICA",103,"FIC CON PACTO DE PERMANENCIA RENTA FIJA DINAMICA","901.134.262-7"]
[null,null,null,null,null,null,null,null,null,null,null,null,null,null,null,null,null,null,null,null,null,null,null,null,null,"META DECIDIDA",111,"FIC ABIERTO META DECIDIDA","901.301.269-4"]
[null,null,null,null,null,null,null,null,null,null,null,null,null,null,null,null,null,null,null,null,null,null,null,null,null,"META CRECIMIENTO",104,"FIC BALANCEADO INTERNACIONAL - (META CRECIMIENTO)","830.004.320-1"]
[null,null,null,null,null,null,null,null,null,null,null,null,null,null,null,null,null,null,null,null,null,null,null,null,null,"FICI RENTA +",114,"FONDO INMOBILIARIO FICI RENTA +","901.426.353-2"]
[null,null,null,null,null,null,null,null,null,null,null,null,null,null,null,null,null,null,null,null,null,null,null,null,null,"ACCICOLF",102,"FONDO DE INVERSION COLECTIVA CERRADO ACCICOLF","900.470.361-4"]
[null,null,null,null,null,null,null,null,null,null,null,null,null,null,null,null,null,null,null,null,null,null,null,null,null,"META ESTRATÉGICA",109,"FIC ABIERTO CON PACTO DE PERMANENCIA META ESTRATÉGICA"]
[null,null,null,null,null,null,null,null,null,null,null,null,null,null,null,null,null,null,null,null,null,null,null,null,null,"ALTERNATIVO PLAZO FIJO - APF II",116,"FIC CERRADO ALTERNATIVO PLAZO FIJO II - APF II",901667503]
[null,null,null,null,null,null,null,null,null,null,null,null,null,null,null,null,null,null,null,null,null,null,null,null,null,"ALTERNATIVO PLAZO FIJO -APF III",117,"FIC CERRADO ALTERNATIVO PLAZO FIJO II - APF III"]
[null,null,null,null,null,null,null,null,null,null,null,null,null,null,null,null,null,null,null,null,null,null,null,null,null,"OCCIDECOL",406,"FONDO DE INVERSION COLECTIVA CERRADA OCCIDECOL I","900.386.785-4"]
[]
[]
[]
[null,null,null,null,null,null,null,null,null,null,null,null,null,null,null,null,null,null,null,null,null,null,null,null,null,null,"FIC","Banco","Cuenta","Tipo de Cuenta","# Op. MAYO"]
[null,null,null,null,null,null,null,null,null,null,null,null,null,null,null,null,null,null,null,null,null,null,null,null,null,{"$f":"+CONCATENATE(AA142,AB142)","v":"100BANCO DE OCCIDENTE"},100,"BANCO DE OCCIDENTE",256026667,"corriente",5541]
[null,null,null,null,null,null,null,null,null,null,null,null,null,null,null,null,null,null,null,null,null,null,null,null,null,{"$f":"+CONCATENATE(AA143,AB143)","v":"100BANCO DE OCCIDENTE"},100,"BANCO DE OCCIDENTE",256044199,"corriente",1647]
[null,null,null,null,null,null,null,null,null,null,null,null,null,null,null,null,null,null,null,null,null,null,null,null,null,{"$f":"+CONCATENATE(AA144,AB144)","v":"100BANCOLOMBIA"},100,"BANCOLOMBIA",3107682499,"de ahorros",591]
[null,null,null,null,null,null,null,null,null,null,null,null,null,null,null,null,null,null,null,null,null,null,null,null,null,{"$f":"+CONCATENATE(AA145,AB145)","v":"100BANCO AGRARIO DE COLOMBIA                                                               "},100,"BANCO AGRARIO DE COLOMBIA                                                               ",431923002041,null,507]
[null,null,null,null,null,null,null,null,null,null,null,null,null,null,null,null,null,null,null,null,null,null,null,null,null,{"$f":"+CONCATENATE(AA146,AB146)","v":"100BANCO DE OCCIDENTE"},100,"BANCO DE OCCIDENTE",256060021,"corriente",382]
[null,null,null,null,null,null,null,null,null,null,null,null,null,null,null,null,null,null,null,null,null,null,null,null,null,{"$f":"+CONCATENATE(AA147,AB147)","v":"100BANCO DE BOGOTA"},100,"BANCO DE BOGOTA",586867,"de ahorros",156]
[null,null,null,null,null,null,null,null,null,null,null,null,null,null,null,null,null,null,null,null,null,null,null,null,null,{"$f":"+CONCATENATE(AA148,AB148)","v":"100BANCO DAVIVIENDA"},100,"BANCO DAVIVIENDA",6500317539,"de ahorros",134]
[null,null,null,null,null,null,null,null,null,null,null,null,null,null,null,null,null,null,null,null,null,null,null,null,null,{"$f":"+CONCATENATE(AA149,AB149)","v":"100BBVA COLOMBIA                                                               "},100,"BBVA COLOMBIA                                                               ",309001949,"de ahorros",84]
[null,null,null,null,null,null,null,null,null,null,null,null,null,null,null,null,null,null,null,null,null,null,null,null,null,{"$f":"+CONCATENATE(AA150,AB150)","v":"100SCOTIABANK COLPATRIA"},100,"SCOTIABANK COLPATRIA",122116964,"de ahorros",59]
[null,null,null,null,null,null,null,null,null,null,null,null,null,null,null,null,null,null,null,null,null,null,null,null,null,{"$f":"+CONCATENATE(AA151,AB151)","v":"100BANCO AV VILLAS"},100,"BANCO AV VILLAS",831631,"de ahorros",58]
[null,null,null,null,null,null,null,null,null,null,null,null,null,null,null,null,null,null,null,null,null,null,null,null,null,{"$f":"+CONCATENATE(AA152,AB152)","v":"100BANCO CAJA SOCIAL"},100,"BANCO CAJA SOCIAL",24020700386,"de ahorros",45]
[null,null,null,null,null,null,null,null,null,null,null,null,null,null,null,null,null,null,null,null,null,null,null,null,null,{"$f":"+CONCATENATE(AA153,AB153)","v":"100BANCO POPULAR"},100,"BANCO POPULAR",150720381,null,30]
[null,null,null,null,null,null,null,null,null,null,null,null,null,null,null,null,null,null,null,null,null,null,null,null,null,{"$f":"+CONCATENATE(AA154,AB154)","v":"100BANCO GNB SUDAMERIS"},100,"BANCO GNB SUDAMERIS",90110518510,"de ahorros",26]
[null,null,null,null,null,null,null,null,null,null,null,null,null,null,null,null,null,null,null,null,null,null,null,null,null,{"$f":"+CONCATENATE(AA155,AB155)","v":"100ITAÚ CORPBANCA COLOMBIA"},100,"ITAÚ CORPBANCA COLOMBIA",39067897,"de ahorros",25]
[null,null,null,null,null,null,null,null,null,null,null,null,null,null,null,null,null,null,null,null,null,null,null,null,null,{"$f":"+CONCATENATE(AA156,AB156)","v":"103BANCO DE OCCIDENTE"},103,"BANCO DE OCCIDENTE",256953746,"de ahorros",7]
[null,null,null,null,null,null,null,null,null,null,null,null,null,null,null,null,null,null,null,null,null,null,null,null,null,{"$f":"+CONCATENATE(AA157,AB157)","v":"103BANCO DE OCCIDENTE"},103,"BANCO DE OCCIDENTE",256959438,"de ahorros",4]
[null,null,null,null,null,null,null,null,null,null,null,null,null,null,null,null,null,null,null,null,null,null,null,null,null,{"$f":"+CONCATENATE(AA158,AB158)","v":"103BANCOLOMBIA"},103,"BANCOLOMBIA",3199402497,"de ahorros",2]
[null,null,null,null,null,null,null,null,null,null,null,null,null,null,null,null,null,null,null,null,null,null,null,null,null,{"$f":"+CONCATENATE(AA159,AB159)","v":"105BANCO DE OCCIDENTE"},105,"BANCO DE OCCIDENTE",256110909,"corriente",17]
[null,null,null,null,null,null,null,null,null,null,null,null,null,null,null,null,null,null,null,null,null,null,null,null,null,{"$f":"+CONCATENATE(AA160,AB160)","v":"105BANCOLOMBIA"},105,"BANCOLOMBIA",3100087528,"de ahorros",6]
[null,null,null,null,null,null,null,null,null,null,null,null,null,null,null,null,null,null,null,null,null,null,null,null,null,{"$f":"+CONCATENATE(AA161,AB161)","v":"105BANCO DE OCCIDENTE"},105,"BANCO DE OCCIDENTE",256107376,"de ahorros",4]
[null,null,null,null,null,null,null,null,null,null,null,null,null,null,null,null,null,null,null,null,null,null,null,null,null,{"$f":"+CONCATENATE(AA162,AB162)","v":"105BANCO DAVIVIENDA"},105,"BANCO DAVIVIENDA",482800008955,null,3]
[null,null,null,null,null,null,null,null,null,null,null,null,null,null,null,null,null,null,null,null,null,null,null,null,null,{"$f":"+CONCATENATE(AA163,AB163)","v":"107BANCO DE OCCIDENTE"},107,"BANCO DE OCCIDENTE",256037532,"corriente",127]
[null,null,null,null,null,null,null,null,null,null,null,null,null,null,null,null,null,null,null,null,null,null,null,null,null,{"$f":"+CONCATENATE(AA164,AB164)","v":"107BANCO DE OCCIDENTE"},107,"BANCO DE OCCIDENTE",256060039,"corriente",21]
[null,null,null,null,null,null,null,null,null,null,null,null,null,null,null,null,null,null,null,null,null,null,null,null,null,{"$f":"+CONCATENATE(AA165,AB165)","v":"107BANCOLOMBIA"},107,"BANCOLOMBIA",3123610741,"de ahorros",9]
[null,null,null,null,null,null,null,null,null,null,null,null,null,null,null,null,null,null,null,null,null,null,null,null,null,{"$f":"+CONCATENATE(AA166,AB166)","v":"110BANCO DE OCCIDENTE"},110,"BANCO DE OCCIDENTE",256058975,"corriente",2133]
[null,null,null,null,null,null,null,null,null,null,null,null,null,null,null,null,null,null,null,null,null,null,null,null,null,{"$f":"+CONCATENATE(AA167,AB167)","v":"110BANCO DE OCCIDENTE"},110,"BANCO DE OCCIDENTE",256060047,"corriente",47]
[null,null,null,null,null,null,null,null,null,null,null,null,null,null,null,null,null,null,null,null,null,null,null,null,null,{"$f":"+CONCATENATE(AA168,AB168)","v":"110BANCOLOMBIA"},110,"BANCOLOMBIA",3126608623,"de ahorros",32]
[null,null,null,null,null,null,null,null,null,null,null,null,null,null,null,null,null,null,null,null,null,null,null,null,null,{"$f":"+CONCATENATE(AA169,AB169)","v":"110BBVA COLOMBIA                                                               "},110,"BBVA COLOMBIA                                                               ",309005858,"de ahorros",26]
[null,null,null,null,null,null,null,null,null,null,null,null,null,null,null,null,null,null,null,null,null,null,null,null,null,{"$f":"+CONCATENATE(AA170,AB170)","v":"110BANCO DE BOGOTA"},110,"BANCO DE BOGOTA",62787569,"de ahorros",24]
[null,null,null,null,null,null,null,null,null,null,null,null,null,null,null,null,null,null,null,null,null,null,null,null,null,{"$f":"+CONCATENATE(AA171,AB171)","v":"110BANCO DAVIVIENDA"},110,"BANCO DAVIVIENDA",457400034403,null,19]
[null,null,null,null,null,null,null,null,null,null,null,null,null,null,null,null,null,null,null,null,null,null,null,null,null,{"$f":"+CONCATENATE(AA172,AB172)","v":"110ITAÚ CORPBANCA COLOMBIA"},110,"ITAÚ CORPBANCA COLOMBIA",39209071,"de ahorros",10]
[null,null,null,null,null,null,null,null,null,null,null,null,null,null,null,null,null,null,null,null,null,null,null,null,null,{"$f":"+CONCATENATE(AA173,AB173)","v":"110BANCO POPULAR"},110,"BANCO POPULAR",220150107514,null,8]
[null,null,null,null,null,null,null,null,null,null,null,null,null,null,null,null,null,null,null,null,null,null,null,null,null,{"$f":"+CONCATENATE(AA174,AB174)","v":"110ITAÚ CORPBANCA COLOMBIA"},110,"ITAÚ CORPBANCA COLOMBIA",5549639,"de ahorros",3]
[null,null,null,null,null,null,null,null,null,null,null,null,null,null,null,null,null,null,null,null,null,null,null,null,null,{"$f":"+CONCATENATE(AA175,AB175)","v":"110BANCO GNB SUDAMERIS"},110,"BANCO GNB SUDAMERIS",90060013870,"de ahorros",3]
[null,null,null,null,null,null,null,null,null,null,null,null,null,null,null,null,null,null,null,null,null,null,null,null,null,{"$f":"+CONCATENATE(AA176,AB176)","v":"110BANCO AV VILLAS"},110,"BANCO AV VILLAS",59004804,"de ahorros",2]
[null,null,null,null,null,null,null,null,null,null,null,null,null,null,null,null,null,null,null,null,null,null,null,null,null,{"$f":"+CONCATENATE(AA177,AB177)","v":"110SCOTIABANK COLPATRIA"},110,"SCOTIABANK COLPATRIA",122337987,"de ahorros",2]
[null,null,null,null,null,null,null,null,null,null,null,null,null,null,null,null,null,null,null,null,null,null,null,null,null,{"$f":"+CONCATENATE(AA178,AB178)","v":"110CITIBANK COLOMBIA"},110,"CITIBANK COLOMBIA",5071060014,"de ahorros",1]
[null,null,null,null,null,null,null,null,null,null,null,null,null,null,null,null,null,null,null,null,null,null,null,null,null,{"$f":"+CONCATENATE(AA179,AB179)","v":"111BANCO DE OCCIDENTE"},111,"BANCO DE OCCIDENTE",256110933,"corriente",3]
[null,null,null,null,null,null,null,null,null,null,null,null,null,null,null,null,null,null,null,null,null,null,null,null,null,{"$f":"+CONCATENATE(AA180,AB180)","v":"112BANCO DE OCCIDENTE"},112,"BANCO DE OCCIDENTE",256114877,"de ahorros",60]
[null,null,null,null,null,null,null,null,null,null,null,null,null,null,null,null,null,null,null,null,null,null,null,null,null,{"$f":"+CONCATENATE(AA181,AB181)","v":"112BANCO DE OCCIDENTE"},112,"BANCO DE OCCIDENTE",256115163,"corriente",16]
[null,null,null,null,null,null,null,null,null,null,null,null,null,null,null,null,null,null,null,null,null,null,null,null,null,{"$f":"+CONCATENATE(AA182,AB182)","v":"112BANCO DAVIVIENDA"},112,"BANCO DAVIVIENDA",482869987917,null,4]
[null,null,null,null,null,null,null,null,null,null,null,null,null,null,null,null,null,null,null,null,null,null,null,null,null,{"$f":"+CONCATENATE(AA183,AB183)","v":"112BANCOLOMBIA"},112,"BANCOLOMBIA",4000000802,"corriente",3]
[null,null,null,null,null,null,null,null,null,null,null,null,null,null,null,null,null,null,null,null,null,null,null,null,null,{"$f":"+CONCATENATE(AA184,AB184)","v":"112BBVA COLOMBIA                                                               "},112,"BBVA COLOMBIA                                                               ",895003226,"de ahorros",1]
[null,null,null,null,null,null,null,null,null,null,null,null,null,null,null,null,null,null,null,null,null,null,null,null,null,{"$f":"+CONCATENATE(AA185,AB185)","v":"221BANCO DE BOGOTA"},221,"BANCO DE BOGOTA",362558,"de ahorros",1]
[null,null,null,null,null,null,null,null,null,null,null,null,null,null,null,null,null,null,null,null,null,null,null,null,null,{"$f":"+CONCATENATE(AA186,AB186)","v":"224BANCO DE OCCIDENTE"},224,"BANCO DE OCCIDENTE",256110883,"de ahorros",2]
[null,null,null,null,null,null,null,null,null,null,null,null,null,null,null,null,null,null,null,null,null,null,null,null,null,{"$f":"+CONCATENATE(AA187,AB187)","v":"904BANCO DE OCCIDENTE"},904,"BANCO DE OCCIDENTE",256907544,"de ahorros",25]

{"sheet":"Hoja7","index":1,"n_rows":0,"n_cols":0,"rows_kept":0,"cut":false,"hidden":false,"merged":[]}